lending/lending_fUSD_20240131
["ID","MTS","AMOUNT","RATE_DAILY","PERIOD"]
[313071666,1706718633351,-472.78671026,0.00022997,2]
[313071667,1706718633360,-507115.41887299,0.00022997,2]
[313071668,1706718633370,-294.28892115,0.00022997,2]
[313071669,1706718633379,-1589.40259295,0.00022997,2]
[313071670,1706718633388,-1117.6393,0.00022997,2]
[313071671,1706718633397,-225.21653009,0.00022997,2]
[313071672,1706718633406,-576.81622647,0.00022997,2]
[313071673,1706718633415,-653.05612415,0.00022998,2]
[313071674,1706718633424,-1061.48385523,0.00022998,2]
[313071675,1706718633434,-203.43210543,0.00022998,2]
[313071676,1706718633443,-935.94147136,0.00022998,2]
[313071677,1706718633453,-155.0,0.00022999,2]
[313071678,1706718633462,-2314.59602894,0.00022999,2]
[313071679,1706718633472,-500.0,0.00022999,2]
[313071680,1706718633481,-500.0,0.00022999,2]
[313071681,1706718633491,-181.57324309,0.00022999,2]
[313071682,1706718633500,-500.0,0.00022999,2]
[313071683,1706718633510,-500.0,0.00022999,2]
[313071684,1706718633519,-500.0,0.00022999,2]
[313071685,1706718633529,-563.28950104,0.00022999,2]
[313071686,1706718633537,-500.0,0.00022999,2]
[313071687,1706718633546,-500.0,0.00022999,2]
[313071688,1706718633556,-500.0,0.00022999,2]
[313071689,1706718633565,-400.0,0.00022999,2]
[313071690,1706718633575,-439.28553062,0.00022999,2]
[313071691,1706718633584,-400.0,0.00022999,2]
[313071692,1706718633593,-526.33396456,0.00022999,2]
[313071693,1706718633603,-500.0,0.00022999,2]
[313071694,1706718633612,-640.86687118,0.00022999,2]
[313071695,1706718633622,-500.0,0.00022999,2]
[313071696,1706718633631,-500.0,0.00022999,2]
[313071697,1706718633641,-589.70290252,0.00022999,2]
[313071698,1706718633652,-250.0,0.00022999,2]
[313071699,1706718633662,-300.0,0.00022999,2]
[313071700,1706718633672,-300.0,0.00022999,2]
[313071701,1706718633681,-300.0,0.00022999,2]
[313071702,1706718633692,-300.0,0.00022999,2]
[313071703,1706718633703,-300.0,0.00022999,2]
[313071704,1706718633714,-300.0,0.00022999,2]
[313071705,1706718633723,-300.0,0.00022999,2]
[313071706,1706718633733,-500.0,0.00022999,2]
[313071707,1706718633742,-391.39880389,0.00022999,2]
[313071708,1706718633752,-500.0,0.00022999,2]
[313071709,1706718633762,-500.0,0.00022999,2]
[313071710,1706718633771,-403.26387575,0.00022999,2]
[313071711,1706718633780,-150.0,0.00022999,2]
[313071712,1706718633790,-150.0,0.00022999,2]
[313071713,1706718633799,-150.0,0.00022999,2]
[313071714,1706718633809,-150.0,0.00022999,2]
[313071715,1706718633818,-150.0,0.00022999,2]
[313071716,1706718633827,-150.0,0.00022999,2]
[313071717,1706718633838,-179262.17525278,0.00023,2]
[313071718,1706718633849,-472424.63639058,0.00023,2]
[313071719,1706718633863,-21459.92338696,0.00023,2]
[313071720,1706718633887,-2347.79408884,0.00023,2]
[313071721,1706718633898,-2523.87,0.00023,2]
[313071722,1706718633929,-3867.77479418,0.00023,2]
[313071723,1706718633941,-4022.66244914,0.00023,2]
[313071724,1706718634552,171.43,0.0002181,2]
[313071727,1706718638099,-171.43,0.00022946,2]
[313071728,1706718638109,-24297.4289162,0.00023,2]
[313071729,1706718638121,-79812.30013965,0.00023,2]
[313071730,1706718638133,-88444.75625685,0.00023,2]
[313071731,1706718638348,-12739.27028375,0.00023,2]
[313071732,1706718638360,-412.94256073,0.00023,2]
[313071733,1706718638372,-2309.62655163,0.00023,2]
[313071734,1706718638383,-3047.11422218,0.00023,2]
[313071735,1706718638395,-12207.5261516,0.00023,2]
[313071738,1706718638407,-2062.21623981,0.00023,2]
[313071740,1706718638418,-454.30031542,0.00023,2]
[313071742,1706718638434,-23460.22969866,0.00023,2]
[313071746,1706718638456,-2247.7034975,0.00023,2]
[313071748,1706718638471,-1911.53235998,0.00023,2]
[313071751,1706718638490,-4330.21871117,0.00023,2]
[313071975,1706718640754,-300.0,0.00022999,2]
[313071977,1706718640764,-300.0,0.00022999,2]
[313071979,1706718640773,-169.59131559,0.00022999,2]
[313071981,1706718640785,-130.40868441,0.00022999,2]
[313071983,1706718640795,-300.0,0.00022999,2]
[313071985,1706718640804,-2114.56919849,0.00023,2]
[313071988,1706718640816,-280.35437568,0.00023,2]
[313071992,1706718640850,-5364.02240599,0.00023,2]
[313071994,1706718640861,-1491.09837849,0.00023,2]
[313071997,1706718640872,-4552.98244124,0.00023,2]
[313072053,1706718641470,-300.0,0.00022999,2]
[313072054,1706718641480,-53983.51730071,0.00023,2]
[313072056,1706718641489,-1500.0,0.00023,2]
[313072058,1706718641499,-1500.0,0.00023,2]
[313072060,1706718641508,-1500.0,0.00023,2]
[313072062,1706718641517,-1500.0,0.00023,2]
[313072063,1706718641526,-1501.86,0.00023,2]
[313072065,1706718641535,-1500.0,0.00023,2]
[313072067,1706718641544,-43468.12754971,0.00023,2]
[313072072,1706718641597,-11660.75252731,0.00023,2]
[313072075,1706718641618,-300.0,0.00022999,2]
[313072077,1706718641628,-1199.35940028,0.00023,2]
[313072079,1706718641643,-1478.37000005,0.00023,2]
[313072082,1706718641655,-2400.57503415,0.00023,2]
[313072083,1706718641666,-11733.70872138,0.00023,2]
[313072085,1706718641679,-2372.594103,0.00023,2]
[313072088,1706718641699,-888.09460618,0.00023,2]
[313072090,1706718641713,-4267.1,0.00023,2]
[313072092,1706718641724,-580.58563103,0.00023,2]
[313072164,1706718643138,-300.0,0.00022999,2]
[313072166,1706718643148,-1065395.36718887,0.00023,2]
[313072177,1706718643259,-1120.44764453,0.00023,2]
[313072179,1706718643270,-53004.34227,0.00023,2]
[313072185,1706718643318,-473.22390086,0.00023,2]
[313072194,1706718643379,-495.44200308,0.00023,2]
[313072257,1706718646062,-197.6935259,0.000229,2]
[313072258,1706718646072,-4064.17968484,0.00023,2]
[313072259,1706718646086,-256.40294569,0.00023,2]
[313072260,1706718646123,-7733.76629228,0.00023,2]
[313072261,1706718646135,-1600.0,0.00023,2]
[313072262,1706718646597,-2199.59589598,0.00023,2]
[313072263,1706718646713,-1547.20881862,0.00023,2]
[313072264,1706718646774,-573.27155235,0.00023,2]
[313072265,1706718646786,-508.705,0.00023,2]
[313072266,1706718646798,-430.96430735,0.00023,2]
[313072269,1706718662349,610.8682776,0.0002181,2]
[313072270,1706718663433,356.53256981,0.0002181,2]
[313072271,1706718663770,1321.68010043,0.0002181,2]
[313072272,1706718663992,775.9101741,0.00021753,2]
[313072273,1706718664012,1109.50853163,0.00021753,2]
[313072274,1706718666961,306.42057278,0.0002181,2]
[313072275,1706718667685,1099.3215382,0.0002181,2]
[313072276,1706718671195,155.0,0.0002181,2]
[313072277,1706718679984,1034.28572866,0.0002181,2]
[313072278,1706718685197,155.0,0.0002181,2]
[313072279,1706718686456,140.46362873,0.0002181,2]
[313072280,1706718686477,69.19541246,0.0002181,2]
[313072281,1706718688195,3930.80458754,0.0002181,2]
[313072282,1706718688216,4000.0,0.0002181,2]
[313072283,1706718688236,4000.0,0.0002181,2]
[313072284,1706718688262,7086.87134464,0.0002181,2]
[313072285,1706718698639,437.13,0.00020569,2]
[313072286,1706718708201,1692.04881536,0.0002181,2]
[313072287,1706718717747,2118.905,0.000225,2]
[313072288,1706718722315,224.04406869,0.00022498,2]
[313072289,1706718728168,577.57329415,0.0002181,2]
[313072290,1706718730688,260.17747455,0.0002181,2]
[313072291,1706718731241,155.89776905,0.0002181,2]
[313072292,1706718734561,178.42715293,0.0002181,2]
[313072293,1706718735826,156.57702525,0.000204,2]
[313072294,1706718738933,302.70821447,0.0002181,2]
[313072295,1706718739664,250.0,0.00022077,2]
[313072296,1706718745780,622.17405158,0.0002176,2]
[313072297,1706718747026,305.0,0.0002181,2]
[313072298,1706718763106,1486.305,0.000225,2]
[313072299,1706718783833,204.0,0.00021686,2]
[313072300,1706718789915,155.0,0.00021685,2]
[313072302,1706718817043,159.84259374,0.00022494,2]
[313072303,1706718825869,23900.0,0.00021733,2]
[313072305,1706718852494,200.0,0.00021695,2]
[313072307,1706718872626,2378.91,0.00021699,2]
[313072308,1706718879395,1383.66,0.00021703,2]
[313072309,1706718883465,579.63,0.00021699,2]
[313072310,1706718898251,1193.41,0.00021699,2]
[313072312,1706719025621,224.04406869,0.00022427,2]
[313072313,1706719026670,500.0,0.00021702,2]
[313072314,1706719029770,192.29,0.00021698,2]
[313072315,1706719042446,689.11,0.00021698,2]
[313072316,1706719115034,155.0,0.00021698,2]
[313072318,1706719141725,168.32,0.00021702,2]
[313072320,1706719153871,250.0,0.00021715,2]
[313072322,1706719176562,160.0,0.00021711,2]
[313072323,1706719180599,578.58,0.00019793,2]
[313072324,1706719180794,578.58,0.00022057,2]
[313072326,1706719202481,504.07593131,0.00022502,2]
[313072327,1706719202502,4000.0,0.00022502,2]
[313072328,1706719202522,4000.0,0.00022502,2]
[313072329,1706719202542,1495.92406869,0.00022502,2]
[313072330,1706719213473,1440.01,0.00021713,2]
[313072335,1706719244054,1064.06593131,0.00022502,2]
[313072336,1706719244076,1435.93406869,0.00022502,2]
[313072337,1706719254862,500.0,0.00021711,2]
[313072343,1706719309531,2064.06593131,0.00021712,2]
[313072344,1706719309551,4000.0,0.00021712,2]
[313072345,1706719309573,4000.0,0.00021712,2]
[313072346,1706719309592,4000.0,0.00021712,2]
[313072347,1706719309611,1802.29406869,0.00021712,2]
[313072351,1706719362806,159.84259366,0.00022483,2]
[313072355,1706719398754,457.78772204,0.00020098,2]
[313072356,1706719399565,1580.07561561,0.00021918,3]
[313072357,1706719399587,919.92438439,0.00021918,3]
[313072358,1706719403899,419.24069403,0.00022502,2]
[313072359,1706719405189,200.0,0.00021699,2]
[313072361,1706719411736,2029.48,0.00021699,2]
[313072362,1706719418501,302.08860795,0.00022502,2]
[313072363,1706719418795,129.26631363,0.00022502,2]
[313072364,1706719418816,1688.45482022,0.00022502,2]
[313072366,1706719434221,155.0,0.00022502,2]
[313072368,1706719441809,155.0,0.00022502,2]
[313072369,1706719445467,165.30239559,0.00022502,2]
[313072370,1706719447291,677.49178837,0.00022502,2]
[313072371,1706719447743,1158.75099582,0.00022502,2]
[313072372,1706719447763,658.09972887,0.00022502,2]
[313072373,1706719450203,191.18102345,0.00022467,2]
[313072375,1706719459802,3150.71924768,0.00022502,2]
[313072376,1706719459824,4000.0,0.00022502,2]
[313072377,1706719459845,4000.0,0.00022502,2]
[313072378,1706719459868,4000.0,0.00022502,2]
[313072379,1706719459890,1709.12708628,0.00022502,2]
[313072380,1706719474526,2000.0,0.00021695,2]
[313072382,1706719477882,290.87291372,0.00022502,2]
[313072383,1706719484854,282.15685369,0.00022501,2]
[313072384,1706719488770,247.34763938,0.00022501,2]
[313072385,1706719492661,911.87927991,0.00022501,2]
[313072386,1706719498743,200.0,0.00021689,2]
[313072387,1706719498854,186.77279142,0.00022501,2]
[313072389,1706719508784,247.34763938,0.00022501,2]
[313072390,1706719510946,439.71428451,0.00022501,2]
[313072391,1706719520321,155.0,0.00022501,2]
[313072394,1706719526787,250.39917805,0.00022501,2]
[313072395,1706719532328,24000.0,0.00022501,2]
[313072396,1706719535518,237.52,0.0002169,2]
[313072397,1706719536332,155.0,0.00022501,2]
[313072399,1706719556337,155.0,0.00022501,2]
[313072401,1706719580469,171.41,0.00021856,2]
[313072403,1706719585255,-800.0,0.00022502,2]
[313072405,1706719603858,1832.35,0.00021693,2]
[313072406,1706719605450,5929.49,0.00021693,2]
[313072407,1706719615818,192.29,0.0002169,2]
[313072409,1706719626287,872.0,0.0002169,2]
[313072411,1706719636350,250.0,0.0002169,2]
[313072412,1706719647849,549.04,0.00019772,2]
[313072413,1706719648053,549.04,0.00022036,2]
[313072416,1706719661112,257.67,0.00022,2]
[313072418,1706719685423,150.0,0.00021693,2]
[313072419,1706719685548,166.03,0.00021693,2]
[313072421,1706719692720,500.0,0.0002169,2]
[313072423,1706719698541,301.05610386,0.00022501,2]
[313072424,1706719705497,280.08406835,0.00022501,2]
[313072425,1706719708554,1006.16,0.0002169,2]
[313072428,1706719722389,250.0,0.00021918,2]
[313072430,1706719749450,10137.0,0.00022343,2]
[313072432,1706719765626,169.00136356,0.00022321,2]
[313072433,1706719771454,1431.33,0.00021691,2]
[313072440,1706719830283,1771.63,0.00021688,2]
[313072453,1706719832258,-1513.11582133,0.00022502,2]
[313072454,1706719832267,-249.93275269,0.00022502,2]
[313072455,1706719832279,-50.06724731,0.00022502,2]
[313072456,1706719832287,-150.0,0.00022502,2]
[313072457,1706719832296,-104.90572199,0.00022503,2]
[313072458,1706719832307,-407.97331261,0.00022503,2]
[313072459,1706719832319,-695.69402603,0.00022503,2]
[313072460,1706719832405,-5.99007877,0.00022503,2]
[313072461,1706719832426,-800.15126418,0.00022503,2]
[313072462,1706719832440,-890.07115902,0.00022503,2]
[313072463,1706719832453,-474.6688742,0.00022503,2]
[313072464,1706719832484,-19291.81218561,0.00022503,2]
[313072465,1706719832493,-7383.92579761,0.00022504,2]
[313072466,1706719832503,-159.84259366,0.00022529,2]
[313072467,1706719832512,-331.3442,0.00022566,2]
[313072468,1706719832522,-3659.9084,0.00022566,2]
[313072469,1706719832532,-4859.3643,0.00022567,2]
[313072470,1706719832541,-4525.89430921,0.0002257,2]
[313072471,1706719832552,-724.88,0.00022574,2]
[313072472,1706719832561,-159.84259366,0.00022576,2]
[313072473,1706719832571,-499.99,0.00022576,2]
[313072474,1706719832581,-622.6010341,0.0002258,2]
[313072476,1706719832590,-1349.89,0.0002258,2]
[313072478,1706719832601,-6783.95,0.0002258,2]
[313072480,1706719832611,-172.60686287,0.00022581,2]
[313072482,1706719832621,-1259.29922996,0.00022582,2]
[313072484,1706719832631,-292.81919456,0.00022582,2]
[313072486,1706719832640,-1000.0,0.00022582,2]
[313072488,1706719832650,-3634.24678218,0.00022582,2]
[313072490,1706719832659,-719.01,0.00022583,2]
[313072493,1706719832669,-725.67,0.00022583,2]
[313072495,1706719832679,-713.18,0.00022591,2]
[313072497,1706719832689,-735.96,0.00022594,2]
[313072499,1706719832700,-445.2195435,0.00022595,2]
[313072502,1706719832709,-2102.12831377,0.00022595,2]
[313072504,1706719832719,-275.42660082,0.00022595,2]
[313072507,1706719832729,-718.76,0.00022596,2]
[313072509,1706719832739,-164.44234738,0.00022597,2]
[313072511,1706719832748,-1364.36224281,0.00022597,2]
[313072513,1706719832758,-2692.44354964,0.00022598,2]
[313072514,1706719832767,-724.93,0.00022598,2]
[313072515,1706719832777,-714.14,0.00022598,2]
[313072516,1706719832786,-728.05,0.00022598,2]
[313072517,1706719832796,-159.84259366,0.00022622,2]
[313072518,1706719832805,-82590.06686754,0.00022666,2]
[313072519,1706719832815,-16852.131,0.00022666,2]
[313072520,1706719832824,-298.58309965,0.00022667,2]
[313072521,1706719832834,-155.80487351,0.00022667,2]
[313072522,1706719832843,-155.0,0.00022667,2]
[313072523,1706719832852,-162.18930337,0.00022667,2]
[313072524,1706719832861,-2321.21340696,0.00022667,2]
[313072525,1706719832870,-155.26565637,0.00022667,2]
[313072526,1706719832879,-217.01105486,0.00022667,2]
[313072527,1706719832888,-1041.52724477,0.00022667,2]
[313072528,1706719832897,-523.73781375,0.00022667,2]
[313072529,1706719832906,-155.0,0.00022668,2]
[313072530,1706719832915,-422.96048099,0.00022668,2]
[313072531,1706719832925,-159.84259366,0.00022668,2]
[313072532,1706719832934,-494.02868803,0.00022669,2]
[313072533,1706719832943,-1000.0,0.00022697,2]
[313072534,1706719832955,-473.76445227,0.00022698,2]
[313072535,1706719832964,-193.72607554,0.00022698,2]
[313072536,1706719832974,-1367.0,0.000227,2]
[313072537,1706719832983,-153.22691188,0.000227,2]
[313072538,1706719832993,-159.84259366,0.00022715,2]
[313072539,1706719833002,-150.0,0.00022731,2]
[313072540,1706719833011,-150.0,0.00022733,2]
[313072541,1706719833021,-150.0,0.00022733,2]
[313072542,1706719833031,-150.0,0.00022734,2]
[313072543,1706719833040,-150.0,0.00022735,2]
[313072544,1706719833051,-150.0,0.00022738,2]
[313072545,1706719833062,-228.86244624,0.0002275,2]
[313072546,1706719833071,-229.58564176,0.00022757,2]
[313072547,1706719833080,-150.0,0.0002276,2]
[313072548,1706719833090,-150.0,0.0002276,2]
[313072549,1706719833100,-159.84259366,0.00022761,2]
[313072550,1706719833109,-150.0,0.00022777,2]
[313072551,1706719833118,-150.0,0.0002278,2]
[313072552,1706719833127,-150.0,0.00022782,2]
[313072553,1706719833136,-579.63,0.00022784,2]
[313072554,1706719833146,-150.0,0.00022794,2]
[313072555,1706719833156,-150.0,0.00022796,2]
[313072556,1706719833165,-177914.02769575,0.00022797,2]
[313072557,1706719833177,-57959.25512395,0.00022797,2]
[313072558,1706719833189,-578.10578071,0.00022797,2]
[313072559,1706719833203,-267.5,0.00022797,2]
[313072560,1706719833216,-1430.67315782,0.00022797,2]
[313072561,1706719833227,-709.57283364,0.00022797,2]
[313072562,1706719833239,-11481.35980162,0.00022797,2]
[313072563,1706719833259,-10725.0,0.00022797,2]
[313072564,1706719833275,-5812.70538814,0.00022797,2]
[313072565,1706719833306,-449285.41805994,0.00022797,2]
[313072566,1706719833316,-195.10400093,0.000228,2]
[313072567,1706719833325,-150.0,0.000228,2]
[313072568,1706719833334,-160.17758008,0.000228,2]
[313072569,1706719833345,-150.0,0.00022803,2]
[313072570,1706719833354,-150.0,0.00022804,2]
[313072571,1706719833364,-150.0,0.00022805,2]
[313072572,1706719833373,-150.0,0.00022806,2]
[313072573,1706719833383,-159.84259366,0.00022807,2]
[313072574,1706719833393,-300.0,0.0002281,2]
[313072575,1706719833402,-150.0,0.00022813,2]
[313072576,1706719833412,-800.0,0.00022816,2]
[313072577,1706719833422,-150.0,0.0002283,2]
[313072578,1706719833431,-150.0,0.00022839,2]
[313072579,1706719833441,-150.0,0.00022842,2]
[313072580,1706719833456,-150.0,0.00022844,2]
[313072581,1706719833467,-159.84259366,0.00022854,2]
[313072582,1706719833477,-150.0,0.00022855,2]
[313072583,1706719833488,-150.0,0.00022868,2]
[313072584,1706719833498,-150.0,0.00022869,2]
[313072585,1706719833508,-150.0,0.00022871,2]
[313072586,1706719833518,-150.0,0.00022872,2]
[313072587,1706719833529,-150.0,0.00022877,2]
[313072588,1706719833540,-1500.0,0.00022882,2]
[313072589,1706719833551,-150.0,0.00022893,2]
[313072590,1706719833561,-150.0,0.00022895,2]
[313072591,1706719833572,-150.0,0.00022897,2]
[313072592,1706719833582,-359.24718817,0.00022898,2]
[313072593,1706719833593,-2616.90790933,0.00022898,4]
[313072594,1706719833603,-502.11703257,0.00022898,2]
[313072595,1706719833614,-3148.81801246,0.00022898,2]
[313072596,1706719833624,-3034.07105232,0.00022898,2]
[313072597,1706719833635,-2624.88799229,0.00022898,2]
[313072598,1706719833646,-162.91082402,0.00022898,2]
[313072599,1706719833657,-256.56027218,0.00022898,2]
[313072600,1706719833667,-226.11786442,0.00022898,2]
[313072601,1706719833677,-2214.17647127,0.00022898,2]
[313072602,1706719833687,-155.0,0.00022898,2]
[313072603,1706719833700,-524.31366153,0.00022898,2]
[313072604,1706719833711,-157.27404596,0.00022898,2]
[313072605,1706719833721,-353.39032026,0.00022898,2]
[313072606,1706719833732,-218.18270859,0.00022898,2]
[313072607,1706719833742,-5451.01098359,0.00022898,2]
[313072608,1706719833752,-249.62635525,0.00022898,2]
[313072609,1706719833762,-941.84462436,0.00022898,2]
[313072610,1706719833773,-202.6537974,0.00022898,2]
[313072611,1706719833783,-155.18158336,0.00022898,2]
[313072612,1706719833793,-2146.87991109,0.00022898,2]
[313072613,1706719833803,-5218.38418036,0.00022898,2]
[313072614,1706719833814,-155.0,0.00022898,2]
[313072615,1706719833823,-397.70595605,0.00022898,2]
[313072616,1706719833832,-191.05895218,0.00022898,2]
[313072617,1706719833842,-941.78794294,0.00022898,2]
[313072618,1706719833851,-1071.00732196,0.00022898,2]
[313072619,1706719833861,-158.77601689,0.00022898,2]
[313072620,1706719833870,-155.17807555,0.00022898,2]
[313072621,1706719833880,-214.80173683,0.00022898,2]
[313072622,1706719833889,-265.27585597,0.00022898,2]
[313072623,1706719833898,-265.49770567,0.00022898,2]
[313072624,1706719833908,-187.20216054,0.00022898,2]
[313072625,1706719833917,-882.40356599,0.00022898,2]
[313072626,1706719833926,-281.27567579,0.00022898,2]
[313072627,1706719833936,-274.34099471,0.00022898,2]
[313072628,1706719833948,-155.53370047,0.00022898,2]
[313072629,1706719833958,-171.86365915,0.00022898,2]
[313072630,1706719833967,-260.15368191,0.00022898,2]
[313072631,1706719833976,-156.36940979,0.00022898,2]
[313072632,1706719833987,-33804.76541887,0.00022898,2]
[313072633,1706719833997,-364.29623215,0.00022898,2]
[313072634,1706719834006,-295.78388584,0.00022898,2]
[313072635,1706719834015,-245.75882796,0.00022898,2]
[313072636,1706719834024,-1854.94837168,0.00022899,2]
[313072637,1706719834033,-115474.34523592,0.000229,2]
[313072638,1706719834046,-1736.6,0.000229,2]
[313072639,1706719834308,205.0,0.00022169,2]
[313072649,1706719838209,-258.17741683,0.000229,2]
[313072650,1706719838222,-310.25754769,0.000229,2]
[313072651,1706719838271,-4149.37001347,0.000229,2]
[313072652,1706719838283,-2364.72154996,0.000229,2]
[313072653,1706719838295,-817.04045832,0.000229,2]
[313072654,1706719838307,-5617.70209,0.000229,2]
[313072655,1706719838318,-12053.7724938,0.000229,2]
[313072656,1706719838349,-13202.63496229,0.000229,2]
[313072657,1706719838361,-14662.20450551,0.000229,2]
[313072658,1706719838373,-263.40803857,0.000229,2]
[313072659,1706719838386,-6938.46057468,0.000229,2]
[313072660,1706719838397,-31712.39785778,0.000229,2]
[313072661,1706719838408,-294.08548322,0.000229,2]
[313072662,1706719838424,-1481.07984364,0.000229,2]
[313072663,1706719838456,-221463.75055075,0.000229,2]
[313072664,1706719838467,-71610.63183471,0.000229,2]
[313072665,1706719838479,-2704.77841585,0.000229,2]
[313072666,1706719838489,-2882.58196153,0.000229,2]
[313072667,1706719838499,-159.84259366,0.000229,2]
[313072668,1706719838508,-153.22691188,0.000229,2]
[313072669,1706719838517,-159.44718191,0.000229,2]
[313072670,1706719838526,-198.58536634,0.000229,2]
[313072671,1706719838536,-314.8087795,0.000229,2]
[313072672,1706719838546,-150.0,0.00022902,2]
[313072673,1706719838555,-150.0,0.00022917,2]
[313072674,1706719838565,-400.59913355,0.00022918,2]
[313072675,1706719838574,-150.0,0.00022919,2]
[313072677,1706719838583,-150.0,0.00022923,2]
[313072679,1706719838593,-300.0,0.00022925,2]
[313072682,1706719838607,-150.0,0.00022926,2]
[313072683,1706719838617,-150.0,0.00022927,2]
[313072686,1706719838627,-150.0,0.00022928,2]
[313072688,1706719838636,-150.0,0.00022929,2]
[313072690,1706719838645,-1500.0,0.00022938,2]
[313072692,1706719838655,-150.0,0.00022942,2]
[313072694,1706719838665,-150.0,0.00022942,2]
[313072696,1706719838675,-150.0,0.00022949,2]
[313072698,1706719838684,-150.0,0.0002295,2]
[313072700,1706719838693,-150.0,0.00022954,2]
[313072702,1706719838704,-300.0,0.00022954,2]
[313072704,1706719838713,-150.0,0.00022956,2]
[313072706,1706719838723,-150.0,0.00022961,2]
[313072708,1706719838733,-150.0,0.00022967,2]
[313072710,1706719838742,-150.0,0.00022969,2]
[313072712,1706719838752,-300.0,0.00022975,2]
[313072714,1706719838760,-150.0,0.00022985,2]
[313072716,1706719838770,-171.41,0.00022995,2]
[313072718,1706719838780,-10568.54913855,0.00022998,2]
[313072720,1706719838789,-20255.72408944,0.00022998,2]
[313072723,1706719838801,-2257.10241646,0.00022998,2]
[313072725,1706719838811,-261.73646346,0.00022998,2]
[313072727,1706719838820,-264.8199997,0.00022998,2]
[313072729,1706719838830,-151.54195763,0.00022999,2]
[313072731,1706719838839,-2844.76597589,0.00022999,2]
[313072733,1706719838849,-1155.25953178,0.00022999,2]
[313072735,1706719838859,-300.0,0.00022999,2]
[313072737,1706719838869,-195.44200308,0.00022999,2]
[313072739,1706719838878,-150.0,0.00022999,2]
[313072741,1706719838888,-150.0,0.00022999,2]
[313072743,1706719838897,-717.72,0.00023,2]
[313072745,1706719838907,-31204.23374167,0.00023,2]
[313072748,1706719838919,-22400.0,0.00023,2]
[313072750,1706719838930,-1673.56768508,0.00023,2]
[313072752,1706719838941,-2226.97018373,0.00023,2]
[313072754,1706719838954,-739.30814126,0.00023,2]
[313072757,1706719838969,-4809.31574473,0.00023,2]
[313072759,1706719838980,-431.95013453,0.00023,2]
[313072761,1706719838992,-1290.50957743,0.00023,2]
[313072764,1706719839011,-1505.52984001,0.00023,2]
[313072956,1706719840794,-1000.0,0.00023,2]
[313072958,1706719840805,-681.02717481,0.00023,2]
[313072961,1706719840817,-9604.3927807,0.00023,2]
[313072965,1706719840850,-650.0,0.00023,2]
[313072968,1706719840862,-10175.2675133,0.00023,2]
[313072970,1706719840873,-595.6030002,0.00023,2]
[313072975,1706719840907,-504.6397497,0.00023,2]
[313073047,1706719841597,-199714.53479559,0.00023,2]
[313073050,1706719841609,-757.42139434,0.00023,2]
[313073052,1706719841621,-1616.14996358,0.00023,2]
[313073054,1706719841633,-3450.37432795,0.00023,2]
[313073056,1706719841645,-785.15857409,0.00023,2]
[313073059,1706719841657,-22542.99418564,0.00023,2]
[313073062,1706719841681,-7562.56311959,0.00023,2]
[313073065,1706719841693,-785.65556892,0.00023,2]
[313073067,1706719841706,-585.18103821,0.00023,2]
[313073069,1706719841717,-32628.56870112,0.00023,2]
[313073072,1706719841733,-2032.5,0.00023,2]
[313073074,1706719841744,-797.95569169,0.00023,2]
[313073079,1706719841786,-4922.14837801,0.00023,2]
[313073142,1706719843249,-1412.82501,0.00023,2]
[313073145,1706719843260,-349.22945785,0.00023,2]
[313073152,1706719843310,-6278.32830952,0.00023,2]
[313073157,1706719843368,-172939.64508082,0.00023,2]
[313073158,1706719843377,-229350.58679657,0.00023,2]
[313073159,1706719843387,-47851.0,0.00023014,2]